[Event "Titled Tuesday Blitz April 18 Late 2023"]
[White "Kraus, Tomas"]
[Black "BebeBonito2022"]
[WhiteFideId "331708"]
[WhiteElo "2389"]
[BlackElo "2175"]
[Result "1-0"]
[Round "09"]
[TimeControl "180+2"]
[Date "2023.04.18"]
[WhiteClock "0:00:40"]
[BlackClock "0:00:20"]

1. e4 {[%clk 0:02:06]}  e5 {[%clk 0:02:59]} 2. Nf3 {[%clk 0:01:59]}  Nc6 {[%clk 0:02:59]} 3. Bc4 {[%clk 0:01:58]}  Nf6 {[%clk 0:02:58]} 4. d3 {[%clk 0:01:55]}  Bc5 {[%clk 0:02:58]} 5. O-O {[%clk 0:01:54]}  a6 {[%clk 0:02:55]} 6. c3 {[%clk 0:01:54]}  Ba7 {[%clk 0:02:54]} 7. Re1 {[%clk 0:01:53]}  h6 {[%clk 0:02:53]} 8. Nbd2 {[%clk 0:01:51]}  d6 {[%clk 0:02:53]} 9. Bb3 {[%clk 0:01:44]}  O-O {[%clk 0:02:50]} 10. Nf1 {[%clk 0:01:43]}  Be6 {[%clk 0:02:49]} 11. Bc2 {[%clk 0:01:42]}  d5 {[%clk 0:02:46]} 12. Qe2 {[%clk 0:01:35]}  d4 {[%clk 0:02:47]} 13. h3 {[%clk 0:01:34]}  Re8 {[%clk 0:02:38]} 14. g4 {[%clk 0:01:30]}  Bc5 {[%clk 0:02:36]} 15. Ng3 {[%clk 0:01:29]}  Bf8 {[%clk 0:02:27]} 16. c4 {[%clk 0:01:29]}  g6 {[%clk 0:02:20]} 17. a3 {[%clk 0:01:28]}  a5 {[%clk 0:02:19]} 18. Bd2 {[%clk 0:01:28]}  Nd7 {[%clk 0:02:13]} 19. Kh1 {[%clk 0:01:28]}  a4 {[%clk 0:02:09]} 20. Rg1 {[%clk 0:01:28]}  Kh7 {[%clk 0:02:04]} 21. Rg2 {[%clk 0:01:29]}  Nc5 {[%clk 0:01:59]} 22. Rag1 {[%clk 0:01:24]}  Bxc4 {[%clk 0:01:40]} 23. Nf5 {[%clk 0:01:25]}  Be6 {[%clk 0:01:17]} 24. N3h4 {[%clk 0:00:59]}  b5 {[%clk 0:00:51]} 25. g5 {[%clk 0:00:54]}  h5 {[%clk 0:00:44]} 26. Ng3 {[%clk 0:00:46]}  Bxh3 {[%clk 0:00:39]} 27. Rh2 {[%clk 0:00:46]}  Qd7 {[%clk 0:00:30]} 28. Nxh5 {[%clk 0:00:41]}  Kg8 {[%clk 0:00:20]} 29. Nf6+ {[%clk 0:00:40]} 1-0


[Site "https://www.chess.com"]

[Event "Titled Tuesday Blitz April 18 Late 2023"]
[White "Manfroi, Alexander Giannini"]
[Black "Sanchez, Robert"]
[WhiteFideId "22739335"]
[BlackFideId "2034360"]
[WhiteElo "1618"]
[BlackElo "1960"]
[Result "1-0"]
[Round "09"]
[TimeControl "180+2"]
[Date "2023.04.18"]
[WhiteClock "0:00:21"]
[BlackClock "0:01:58"]

1. d4 {[%clk 0:03:00]}  a5 {[%clk 0:02:57]} 2. Bf4 {[%clk 0:03:00]}  a4 {[%clk 0:02:57]} 3. a3 {[%clk 0:02:56]}  e6 {[%clk 0:02:57]} 4. Nc3 {[%clk 0:02:54]}  d5 {[%clk 0:02:58]} 5. e3 {[%clk 0:02:51]}  Nf6 {[%clk 0:02:53]} 6. Nf3 {[%clk 0:02:49]}  Bd6 {[%clk 0:02:53]} 7. Bg3 {[%clk 0:02:49]}  O-O {[%clk 0:02:53]} 8. Bd3 {[%clk 0:02:48]}  Qe7 {[%clk 0:02:53]} 9. Ne5 {[%clk 0:02:48]}  Nc6 {[%clk 0:02:53]} 10. f4 {[%clk 0:02:48]}  Nd7 {[%clk 0:02:52]} 11. Qh5 {[%clk 0:02:44]}  g6 {[%clk 0:02:51]} 12. Qh6 {[%clk 0:02:43]}  f6 {[%clk 0:02:51]} 13. Ng4 {[%clk 0:02:18]}  Qg7 {[%clk 0:02:47]} 14. O-O {[%clk 0:02:07]}  Nb6 {[%clk 0:02:39]} 15. Rae1 {[%clk 0:01:59]}  Bd7 {[%clk 0:02:39]} 16. Nb5 {[%clk 0:01:52]}  e5 {[%clk 0:02:36]} 17. Qxg7+ {[%clk 0:01:43]}  Kxg7 {[%clk 0:02:36]} 18. dxe5 {[%clk 0:01:29]}  fxe5 {[%clk 0:02:21]} 19. Nxd6 {[%clk 0:01:15]}  cxd6 {[%clk 0:02:22]} 20. Nf2 {[%clk 0:01:03]}  e4 {[%clk 0:02:22]} 21. Be2 {[%clk 0:00:52]}  Na5 {[%clk 0:02:22]} 22. Rd1 {[%clk 0:00:44]}  Bc6 {[%clk 0:02:22]} 23. Bg4 {[%clk 0:00:37]}  Nac4 {[%clk 0:02:21]} 24. Rfe1 {[%clk 0:00:30]}  Nxb2 {[%clk 0:02:19]} 25. Rb1 {[%clk 0:00:29]}  N2c4 {[%clk 0:02:19]} 26. Be6 {[%clk 0:00:28]}  Rae8 {[%clk 0:02:13]} 27. Bh3 {[%clk 0:00:23]}  Nd7 {[%clk 0:02:00]} 28. Nd1 {[%clk 0:00:22]}  Nxa3 {[%clk 0:01:59]} 29. Rb4 {[%clk 0:00:21]}  Nxc2 {[%clk 0:01:58]} 1-0


[Site "https://www.chess.com"]

[Event "Titled Tuesday Blitz April 18 Late 2023"]
[White "Caruana, Fabiano"]
[Black "Firouzja, Alireza"]
[WhiteFideId "2020009"]
[BlackFideId "12573981"]
[WhiteElo "2837"]
[BlackElo "2904"]
[Result "0-1"]
[Round "10"]
[TimeControl "180+2"]
[Date "2023.04.18"]
[WhiteClock "0:00:02"]
[BlackClock "0:00:08"]

1. e4 {[%clk 0:03:00]}  c6 {[%clk 0:03:00]} 2. d4 {[%clk 0:02:58]}  d5 {[%clk 0:03:00]} 3. exd5 {[%clk 0:02:58]}  cxd5 {[%clk 0:03:00]} 4. Bd3 {[%clk 0:02:59]}  Nf6 {[%clk 0:03:00]} 5. c3 {[%clk 0:02:58]}  Bg4 {[%clk 0:03:00]} 6. Qb3 {[%clk 0:02:57]}  Qc7 {[%clk 0:03:01]} 7. h3 {[%clk 0:02:54]}  Bd7 {[%clk 0:03:01]} 8. Nf3 {[%clk 0:02:54]}  Nc6 {[%clk 0:03:00]} 9. O-O {[%clk 0:02:54]}  e6 {[%clk 0:03:01]} 10. Re1 {[%clk 0:02:54]}  Bd6 {[%clk 0:03:01]} 11. Nbd2 {[%clk 0:02:51]}  O-O {[%clk 0:03:00]} 12. Nf1 {[%clk 0:02:51]}  Rfe8 {[%clk 0:02:25]} 13. Qd1 {[%clk 0:02:45]}  h6 {[%clk 0:02:20]} 14. a4 {[%clk 0:02:09]}  Re7 {[%clk 0:02:19]} 15. Ne3 {[%clk 0:02:07]}  Rae8 {[%clk 0:02:14]} 16. b4 {[%clk 0:01:55]}  e5 {[%clk 0:02:06]} 17. b5 {[%clk 0:01:54]}  exd4 {[%clk 0:01:44]} 18. cxd4 {[%clk 0:01:51]}  Nb4 {[%clk 0:01:44]} 19. Ba3 {[%clk 0:01:33]}  a5 {[%clk 0:01:19]} 20. Rc1 {[%clk 0:01:27]}  Qb8 {[%clk 0:01:14]} 21. Bb1 {[%clk 0:01:24]}  Bf4 {[%clk 0:01:12]} 22. Qb3 {[%clk 0:01:04]}  Bxh3 {[%clk 0:00:56]} 23. Ne5 {[%clk 0:00:57]}  Bc8 {[%clk 0:00:26]} 24. Bxb4 {[%clk 0:00:54]}  axb4 {[%clk 0:00:26]} 25. Qxb4 {[%clk 0:00:54]}  Bxe5 {[%clk 0:00:24]} 26. dxe5 {[%clk 0:00:55]}  Qxe5 {[%clk 0:00:24]} 27. a5 {[%clk 0:00:32]}  d4 {[%clk 0:00:14]} 28. Nc2 {[%clk 0:00:31]}  Qg5 {[%clk 0:00:15]} 29. Rxe7 {[%clk 0:00:16]}  Qxc1+ {[%clk 0:00:14]} 30. Re1 {[%clk 0:00:16]}  Rxe1+ {[%clk 0:00:12]} 31. Qxe1 {[%clk 0:00:17]}  Qb2 {[%clk 0:00:12]} 32. Nb4 {[%clk 0:00:16]}  Qa3 {[%clk 0:00:07]} 33. a6 {[%clk 0:00:12]}  bxa6 {[%clk 0:00:07]} 34. b6 {[%clk 0:00:13]}  a5 {[%clk 0:00:06]} 35. Nc6 {[%clk 0:00:12]}  Bb7 {[%clk 0:00:06]} 36. Nd8 {[%clk 0:00:08]}  Bd5 {[%clk 0:00:06]} 37. b7 {[%clk 0:00:06]}  Qb2 {[%clk 0:00:07]} 38. Bf5 {[%clk 0:00:05]}  Bxb7 {[%clk 0:00:07]} 39. Qe7 {[%clk 0:00:03]}  Qc1+ {[%clk 0:00:07]} 40. Kh2 {[%clk 0:00:03]}  Qf4+ {[%clk 0:00:07]} 41. Kg1 {[%clk 0:00:04]}  Bd5 {[%clk 0:00:08]} 42. Bd3 {[%clk 0:00:02]}  Qc1+ {[%clk 0:00:08]} 43. Kh2 {[%clk 0:00:02]}  Qf4+ {[%clk 0:00:08]} 44. Kg1 {[%clk 0:00:02]}  g6 {[%clk 0:00:08]} 0-1


[Site "https://www.chess.com"]

[Event "Titled Tuesday Blitz April 18 Late 2023"]
[White "Djordjevic, Vuk"]
[Black "Paravyan, David"]
[WhiteFideId "902098"]
[BlackFideId "4194985"]
[WhiteElo "2452"]
[BlackElo "2563"]
[Result "0-1"]
[Round "10"]
[TimeControl "180+2"]
[Date "2023.04.18"]
[WhiteClock "0:00:01"]
[BlackClock "0:00:28"]

1. d4 {[%clk 0:03:00]}  Nf6 {[%clk 0:02:59]} 2. Bg5 {[%clk 0:03:01]}  c6 {[%clk 0:03:00]} 3. Bxf6 {[%clk 0:03:00]}  exf6 {[%clk 0:02:57]} 4. c4 {[%clk 0:02:58]}  d5 {[%clk 0:02:57]} 5. cxd5 {[%clk 0:02:55]}  Qxd5 {[%clk 0:02:57]} 6. Nc3 {[%clk 0:02:55]}  Qa5 {[%clk 0:02:56]} 7. e3 {[%clk 0:02:49]}  Bd6 {[%clk 0:02:56]} 8. g3 {[%clk 0:02:46]}  h5 {[%clk 0:02:55]} 9. h4 {[%clk 0:02:44]}  g6 {[%clk 0:02:56]} 10. Bg2 {[%clk 0:02:43]}  Kf8 {[%clk 0:02:52]} 11. Nf3 {[%clk 0:02:42]}  Kg7 {[%clk 0:02:52]} 12. O-O {[%clk 0:02:41]}  Bg4 {[%clk 0:02:51]} 13. Qb3 {[%clk 0:02:39]}  Qb6 {[%clk 0:02:51]} 14. Qc2 {[%clk 0:02:35]}  Nd7 {[%clk 0:02:49]} 15. Nd2 {[%clk 0:02:35]}  Be6 {[%clk 0:02:45]} 16. Nce4 {[%clk 0:02:20]}  Be7 {[%clk 0:02:45]} 17. Nc4 {[%clk 0:02:15]}  Qd8 {[%clk 0:02:37]} 18. Rfd1 {[%clk 0:02:13]}  Bd5 {[%clk 0:02:17]} 19. a3 {[%clk 0:02:00]}  Qc7 {[%clk 0:02:03]} 20. b4 {[%clk 0:01:54]}  b6 {[%clk 0:02:01]} 21. Rac1 {[%clk 0:01:45]}  Rac8 {[%clk 0:02:00]} 22. Nb2 {[%clk 0:01:19]}  Qb7 {[%clk 0:01:56]} 23. Na4 {[%clk 0:00:53]}  f5 {[%clk 0:01:52]} 24. Nec3 {[%clk 0:00:43]}  Bxg2 {[%clk 0:01:51]} 25. Kxg2 {[%clk 0:00:43]}  c5+ {[%clk 0:01:52]} 26. d5 {[%clk 0:00:41]}  cxb4 {[%clk 0:01:50]} 27. axb4 {[%clk 0:00:38]}  Bxb4 {[%clk 0:01:30]} 28. Qb2 {[%clk 0:00:38]}  Bd6 {[%clk 0:01:29]} 29. f4 {[%clk 0:00:26]}  Nf6 {[%clk 0:01:24]} 30. e4 {[%clk 0:00:26]}  fxe4 {[%clk 0:01:12]} 31. Nxe4 {[%clk 0:00:26]}  Qe7 {[%clk 0:01:12]} 32. Nac3 {[%clk 0:00:17]}  Ba3 {[%clk 0:01:06]} 33. Qa1 {[%clk 0:00:09]}  Bxc1 {[%clk 0:01:06]} 34. Rxc1 {[%clk 0:00:09]}  Rhd8 {[%clk 0:00:52]} 35. Re1 {[%clk 0:00:08]}  Qb4 {[%clk 0:00:28]} 36. Nxf6 {[%clk 0:00:04]}  Qxc3 {[%clk 0:00:27]} 37. Qxc3 {[%clk 0:00:03]}  Rxc3 {[%clk 0:00:27]} 38. Ne8+ {[%clk 0:00:01]}  Kf8 {[%clk 0:00:28]} 39. Nf6 {[%clk 0:00:01]}  Rcc8 {[%clk 0:00:28]} 0-1


[Site "https://www.chess.com"]

[Event "Titled Tuesday Blitz April 18 Late 2023"]
[White "Suleymanli, Aydin"]
[Black "Andreikin, Dmitry"]
[WhiteFideId "13413937"]
[BlackFideId "4158814"]
[WhiteElo "2559"]
[BlackElo "2736"]
[Result "0-1"]
[Round "10"]
[TimeControl "180+2"]
[Date "2023.04.18"]
[WhiteClock "0:00:02"]
[BlackClock "0:00:04"]

1. e4 {[%clk 0:02:58]}  c5 {[%clk 0:02:58]} 2. Nf3 {[%clk 0:02:55]}  Nc6 {[%clk 0:02:58]} 3. Bb5 {[%clk 0:02:53]}  Nf6 {[%clk 0:02:57]} 4. Nc3 {[%clk 0:02:50]}  e5 {[%clk 0:02:50]} 5. d3 {[%clk 0:02:44]}  d6 {[%clk 0:02:47]} 6. a4 {[%clk 0:02:40]}  Be7 {[%clk 0:02:41]} 7. O-O {[%clk 0:02:35]}  O-O {[%clk 0:02:41]} 8. h3 {[%clk 0:02:35]}  Nd4 {[%clk 0:02:36]} 9. Bc4 {[%clk 0:02:34]}  Be6 {[%clk 0:02:37]} 10. Bg5 {[%clk 0:02:33]}  Nd7 {[%clk 0:02:28]} 11. Bxe7 {[%clk 0:02:18]}  Qxe7 {[%clk 0:02:29]} 12. Nd2 {[%clk 0:02:02]}  Qg5 {[%clk 0:02:20]} 13. Kh1 {[%clk 0:01:53]}  Nf6 {[%clk 0:02:19]} 14. Nb5 {[%clk 0:01:19]}  Bg4 {[%clk 0:01:57]} 15. f3 {[%clk 0:00:38]}  Bd7 {[%clk 0:01:57]} 16. Nxd6 {[%clk 0:00:34]}  Nh5 {[%clk 0:01:56]} 17. Rf2 {[%clk 0:00:17]}  Qh4 {[%clk 0:01:34]} 18. Kg1 {[%clk 0:00:13]}  Nf4 {[%clk 0:01:32]} 19. c3 {[%clk 0:00:11]}  Qg3 {[%clk 0:01:23]} 20. Kf1 {[%clk 0:00:08]}  Bxh3 {[%clk 0:00:46]} 21. gxh3 {[%clk 0:00:03]}  Rad8 {[%clk 0:00:46]} 22. Nf5 {[%clk 0:00:02]}  Qxh3+ {[%clk 0:00:40]} 23. Ke1 {[%clk 0:00:03]}  Nxf5 {[%clk 0:00:36]} 24. exf5 {[%clk 0:00:04]}  Rxd3 {[%clk 0:00:21]} 25. Bxd3 {[%clk 0:00:02]}  Nxd3+ {[%clk 0:00:22]} 26. Ke2 {[%clk 0:00:03]}  Nxf2 {[%clk 0:00:18]} 27. Kxf2 {[%clk 0:00:03]}  Qh2+ {[%clk 0:00:18]} 28. Ke3 {[%clk 0:00:04]}  Rd8 {[%clk 0:00:16]} 29. Qe1 {[%clk 0:00:03]}  c4 {[%clk 0:00:16]} 30. Nxc4 {[%clk 0:00:01]}  Qf4+ {[%clk 0:00:16]} 31. Kf2 {[%clk 0:00:02]}  Qxc4 {[%clk 0:00:16]} 32. Rd1 {[%clk 0:00:02]}  Qh4+ {[%clk 0:00:13]} 33. Kg2 {[%clk 0:00:02]}  Qg5+ {[%clk 0:00:13]} 34. Kf2 {[%clk 0:00:03]}  h5 {[%clk 0:00:11]} 35. Rxd8+ {[%clk 0:00:02]}  Qxd8 {[%clk 0:00:12]} 36. Qxe5 {[%clk 0:00:03]}  Qd2+ {[%clk 0:00:12]} 37. Kg3 {[%clk 0:00:04]}  Qg5+ {[%clk 0:00:09]} 38. Kh3 {[%clk 0:00:03]}  h4 {[%clk 0:00:08]} 39. Kh2 {[%clk 0:00:03]}  Kh7 {[%clk 0:00:07]} 40. Qe4 {[%clk 0:00:02]}  Qg3+ {[%clk 0:00:07]} 41. Kh1 {[%clk 0:00:02]}  Kh6 {[%clk 0:00:05]} 42. a5 {[%clk 0:00:02]}  h3 {[%clk 0:00:04]} 43. b4 {[%clk 0:00:02]}  Qg2# {[%clk 0:00:04]} 0-1


[Site "https://www.chess.com"]

[Event "Titled Tuesday Blitz April 18 Late 2023"]
[White "Martinez Alcantara, Jose Eduardo"]
[Black "Pichot, Alan"]
[WhiteFideId "3805662"]
[BlackFideId "110973"]
[WhiteElo "2711"]
[BlackElo "2573"]
[Result "1-0"]
[Round "10"]
[TimeControl "180+2"]
[Date "2023.04.18"]
[WhiteClock "0:00:33"]
[BlackClock "0:00:06"]

1. e4 {[%clk 0:02:58]}  c5 {[%clk 0:02:50]} 2. Nf3 {[%clk 0:02:58]}  e6 {[%clk 0:02:51]} 3. c3 {[%clk 0:02:58]}  Nf6 {[%clk 0:02:50]} 4. Bd3 {[%clk 0:02:58]}  d5 {[%clk 0:02:45]} 5. e5 {[%clk 0:02:57]}  c4 {[%clk 0:02:45]} 6. Bc2 {[%clk 0:02:57]}  Nfd7 {[%clk 0:02:46]} 7. d4 {[%clk 0:02:57]}  cxd3 {[%clk 0:02:45]} 8. Bxd3 {[%clk 0:02:58]}  Nc6 {[%clk 0:02:45]} 9. Bf4 {[%clk 0:02:59]}  Be7 {[%clk 0:02:45]} 10. h4 {[%clk 0:02:58]}  Qb6 {[%clk 0:02:40]} 11. b4 {[%clk 0:02:44]}  a5 {[%clk 0:02:33]} 12. b5 {[%clk 0:02:43]}  Ncb8 {[%clk 0:02:30]} 13. a4 {[%clk 0:02:37]}  Nc5 {[%clk 0:02:30]} 14. Bc2 {[%clk 0:02:36]}  Ne4 {[%clk 0:02:28]} 15. Qe2 {[%clk 0:02:32]}  Nd7 {[%clk 0:02:27]} 16. O-O {[%clk 0:02:18]}  Ndc5 {[%clk 0:02:23]} 17. c4 {[%clk 0:02:17]}  O-O {[%clk 0:02:22]} 18. Rd1 {[%clk 0:02:14]}  Rd8 {[%clk 0:02:19]} 19. Qe3 {[%clk 0:02:10]}  h6 {[%clk 0:02:09]} 20. Nbd2 {[%clk 0:02:03]}  Qa7 {[%clk 0:01:23]} 21. Nxe4 {[%clk 0:01:52]}  Nxe4 {[%clk 0:01:12]} 22. Qxa7 {[%clk 0:01:44]}  Rxa7 {[%clk 0:01:12]} 23. Be3 {[%clk 0:01:38]}  Ra8 {[%clk 0:01:03]} 24. Bb6 {[%clk 0:01:38]}  Rd7 {[%clk 0:01:04]} 25. Bxe4 {[%clk 0:01:26]}  dxe4 {[%clk 0:01:04]} 26. Nd2 {[%clk 0:01:27]}  f5 {[%clk 0:00:43]} 27. exf6 {[%clk 0:01:21]}  gxf6 {[%clk 0:00:37]} 28. Nxe4 {[%clk 0:01:19]}  f5 {[%clk 0:00:38]} 29. Nc5 {[%clk 0:01:11]}  Bxc5 {[%clk 0:00:27]} 30. Bxc5 {[%clk 0:01:11]}  Kf7 {[%clk 0:00:27]} 31. Bb6 {[%clk 0:01:04]}  e5 {[%clk 0:00:26]} 32. Rd5 {[%clk 0:00:59]}  Rxd5 {[%clk 0:00:24]} 33. cxd5 {[%clk 0:00:59]}  Bd7 {[%clk 0:00:25]} 34. Re1 {[%clk 0:00:49]}  e4 {[%clk 0:00:25]} 35. Kh2 {[%clk 0:00:49]}  Rc8 {[%clk 0:00:25]} 36. Bxa5 {[%clk 0:00:47]}  Ra8 {[%clk 0:00:25]} 37. Bd2 {[%clk 0:00:47]}  Rxa4 {[%clk 0:00:25]} 38. Bxh6 {[%clk 0:00:47]}  Bxb5 {[%clk 0:00:23]} 39. Be3 {[%clk 0:00:44]}  Bc4 {[%clk 0:00:20]} 40. Rd1 {[%clk 0:00:43]}  Bd3 {[%clk 0:00:15]} 41. Rc1 {[%clk 0:00:39]}  Bc4 {[%clk 0:00:09]} 42. d6 {[%clk 0:00:39]}  Ke6 {[%clk 0:00:09]} 43. Bf4 {[%clk 0:00:38]}  b5 {[%clk 0:00:10]} 44. h5 {[%clk 0:00:38]}  Ra7 {[%clk 0:00:09]} 45. h6 {[%clk 0:00:39]}  Kf6 {[%clk 0:00:06]} 46. Kg3 {[%clk 0:00:39]}  Rd7 {[%clk 0:00:06]} 47. Rh1 {[%clk 0:00:37]}  Kg6 {[%clk 0:00:06]} 48. h7 {[%clk 0:00:33]} 1-0


[Site "https://www.chess.com"]

[Event "Titled Tuesday Blitz April 18 Late 2023"]
[White "Lazavik, Denis"]
[Black "Quesada Perez, Yasser"]
[WhiteFideId "13515110"]
[BlackFideId "3509362"]
[WhiteElo "2560"]
[BlackElo "2496"]
[Result "1-0"]
[Round "10"]
[TimeControl "180+2"]
[Date "2023.04.18"]
[WhiteClock "0:00:15"]
[BlackClock "0:00:05"]

1. d4 {[%clk 0:03:00]}  Nf6 {[%clk 0:02:59]} 2. c4 {[%clk 0:03:01]}  e6 {[%clk 0:02:59]} 3. Nf3 {[%clk 0:03:01]}  Bb4+ {[%clk 0:02:59]} 4. Bd2 {[%clk 0:03:01]}  Bxd2+ {[%clk 0:02:55]} 5. Qxd2 {[%clk 0:03:02]}  b6 {[%clk 0:02:54]} 6. g3 {[%clk 0:03:02]}  Bb7 {[%clk 0:02:55]} 7. Bg2 {[%clk 0:03:03]}  O-O {[%clk 0:02:55]} 8. O-O {[%clk 0:03:03]}  d6 {[%clk 0:02:53]} 9. Qf4 {[%clk 0:03:03]}  Nbd7 {[%clk 0:02:53]} 10. Nc3 {[%clk 0:03:03]}  Qe7 {[%clk 0:02:53]} 11. e4 {[%clk 0:03:03]}  e5 {[%clk 0:02:52]} 12. Qe3 {[%clk 0:03:03]}  Rfe8 {[%clk 0:02:42]} 13. Rfe1 {[%clk 0:03:03]}  g6 {[%clk 0:02:37]} 14. Rad1 {[%clk 0:03:02]}  Nf8 {[%clk 0:02:29]} 15. h3 {[%clk 0:02:57]}  c6 {[%clk 0:02:25]} 16. b3 {[%clk 0:02:55]}  Kg7 {[%clk 0:02:20]} 17. Qd2 {[%clk 0:02:53]}  Rad8 {[%clk 0:02:19]} 18. Qb2 {[%clk 0:02:53]}  a6 {[%clk 0:02:14]} 19. a4 {[%clk 0:02:39]}  Qc7 {[%clk 0:02:13]} 20. Nb1 {[%clk 0:02:21]}  N6d7 {[%clk 0:02:04]} 21. Nbd2 {[%clk 0:02:18]}  Ne6 {[%clk 0:02:01]} 22. Nf1 {[%clk 0:02:18]}  c5 {[%clk 0:01:55]} 23. dxe5 {[%clk 0:02:00]}  dxe5 {[%clk 0:01:55]} 24. N3d2 {[%clk 0:01:53]}  Nd4 {[%clk 0:01:54]} 25. Ne3 {[%clk 0:01:54]}  Nf6 {[%clk 0:01:53]} 26. Nd5 {[%clk 0:01:54]}  Bxd5 {[%clk 0:01:53]} 27. exd5 {[%clk 0:01:53]}  a5 {[%clk 0:01:50]} 28. Re3 {[%clk 0:01:50]}  Qd7 {[%clk 0:01:27]} 29. Rde1 {[%clk 0:01:50]}  Qf5 {[%clk 0:01:27]} 30. Nf3 {[%clk 0:01:35]}  Qc2 {[%clk 0:01:17]} 31. Qa3 {[%clk 0:01:15]}  e4 {[%clk 0:01:11]} 32. Nh2 {[%clk 0:00:56]}  Nf5 {[%clk 0:01:06]} 33. R3e2 {[%clk 0:00:56]}  Qd3 {[%clk 0:01:05]} 34. Nf1 {[%clk 0:00:52]}  Qd4 {[%clk 0:00:49]} 35. Qc1 {[%clk 0:00:47]}  h6 {[%clk 0:00:47]} 36. Qf4 {[%clk 0:00:45]}  Nd6 {[%clk 0:00:39]} 37. Rd2 {[%clk 0:00:33]}  Qc3 {[%clk 0:00:36]} 38. Qe3 {[%clk 0:00:31]}  Qxe3 {[%clk 0:00:33]} 39. Nxe3 {[%clk 0:00:30]}  Nd7 {[%clk 0:00:33]} 40. Nd1 {[%clk 0:00:28]}  f5 {[%clk 0:00:32]} 41. Nc3 {[%clk 0:00:28]}  Ne5 {[%clk 0:00:33]} 42. Ne2 {[%clk 0:00:28]}  Nd3 {[%clk 0:00:32]} 43. Red1 {[%clk 0:00:28]}  g5 {[%clk 0:00:32]} 44. f3 {[%clk 0:00:22]}  exf3 {[%clk 0:00:29]} 45. Bxf3 {[%clk 0:00:22]}  Nb4 {[%clk 0:00:28]} 46. Kf2 {[%clk 0:00:19]}  Re5 {[%clk 0:00:27]} 47. Nc3 {[%clk 0:00:19]}  Kf6 {[%clk 0:00:25]} 48. Nb5 {[%clk 0:00:18]}  Nxb5 {[%clk 0:00:19]} 49. axb5 {[%clk 0:00:18]}  Rd6 {[%clk 0:00:19]} 50. Re1 {[%clk 0:00:18]}  Rxe1 {[%clk 0:00:15]} 51. Kxe1 {[%clk 0:00:19]}  Ke5 {[%clk 0:00:15]} 52. Re2+ {[%clk 0:00:19]}  Kd4 {[%clk 0:00:14]} 53. Re6 {[%clk 0:00:18]}  Nd3+ {[%clk 0:00:06]} 54. Kd2 {[%clk 0:00:13]}  Rd8 {[%clk 0:00:05]} 55. Rxb6 {[%clk 0:00:13]}  Ne5 {[%clk 0:00:04]} 56. Be2 {[%clk 0:00:13]}  f4 {[%clk 0:00:05]} 57. gxf4 {[%clk 0:00:14]}  gxf4 {[%clk 0:00:06]} 58. Rf6 {[%clk 0:00:14]}  Ke4 {[%clk 0:00:05]} 59. b6 {[%clk 0:00:15]}  f3 {[%clk 0:00:05]} 60. Bd1 {[%clk 0:00:14]}  a4 {[%clk 0:00:05]} 61. Bc2+ {[%clk 0:00:14]}  Kd4 {[%clk 0:00:05]} 62. Rf4# {[%clk 0:00:15]} 1-0


[Site "https://www.chess.com"]

[Event "Titled Tuesday Blitz April 18 Late 2023"]
[White "Llorente Zaro, Alfonso"]
[Black "Sarana, Alexey"]
[WhiteFideId "2254131"]
[BlackFideId "24133795"]
[WhiteElo "2485"]
[BlackElo "2714"]
[Result "0-1"]
[Round "10"]
[TimeControl "180+2"]
[Date "2023.04.18"]
[WhiteClock "0:01:32"]
[BlackClock "0:00:41"]

1. e4 {[%clk 0:03:00]}  d6 {[%clk 0:02:53]} 2. d4 {[%clk 0:02:59]}  Nf6 {[%clk 0:02:54]} 3. Nc3 {[%clk 0:02:59]}  Nbd7 {[%clk 0:02:54]} 4. Nf3 {[%clk 0:02:52]}  e5 {[%clk 0:02:55]} 5. Bc4 {[%clk 0:02:52]}  Be7 {[%clk 0:02:54]} 6. O-O {[%clk 0:02:40]}  c6 {[%clk 0:02:54]} 7. a4 {[%clk 0:02:40]}  a5 {[%clk 0:02:53]} 8. Re1 {[%clk 0:02:39]}  h6 {[%clk 0:02:53]} 9. b3 {[%clk 0:02:39]}  Qc7 {[%clk 0:02:52]} 10. Ba3 {[%clk 0:02:34]}  O-O {[%clk 0:02:51]} 11. dxe5 {[%clk 0:02:30]}  Nxe5 {[%clk 0:02:52]} 12. Be2 {[%clk 0:02:30]}  Re8 {[%clk 0:02:46]} 13. Qd2 {[%clk 0:02:28]}  Nxf3+ {[%clk 0:02:29]} 14. Bxf3 {[%clk 0:02:29]}  Be6 {[%clk 0:02:29]} 15. Rad1 {[%clk 0:02:27]}  Rad8 {[%clk 0:02:30]} 16. Qf4 {[%clk 0:02:28]}  Nh7 {[%clk 0:02:13]} 17. Rd3 {[%clk 0:02:24]}  Rd7 {[%clk 0:02:05]} 18. Red1 {[%clk 0:02:21]}  Red8 {[%clk 0:02:06]} 19. h4 {[%clk 0:02:13]}  Nf8 {[%clk 0:02:05]} 20. g3 {[%clk 0:02:14]}  Ng6 {[%clk 0:02:05]} 21. Qe3 {[%clk 0:02:05]}  Ne5 {[%clk 0:01:43]} 22. R3d2 {[%clk 0:02:05]}  d5 {[%clk 0:00:41]} 23. exd5 {[%clk 0:01:37]}  Nxf3+ {[%clk 0:00:40]} 24. Qxf3 {[%clk 0:01:36]}  Bxa3 {[%clk 0:00:41]} 25. dxe6 {[%clk 0:01:32]}  Rxd2 {[%clk 0:00:41]} 0-1


[Site "https://www.chess.com"]

[Event "Titled Tuesday Blitz April 18 Late 2023"]
[White "Djokic, Mihailo"]
[Black "Moussard, Jules"]
[WhiteFideId "976440"]
[BlackFideId "642908"]
[WhiteElo "2294"]
[BlackElo "2610"]
[Result "0-1"]
[Round "10"]
[TimeControl "180+2"]
[Date "2023.04.18"]
[WhiteClock "0:00:04"]
[BlackClock "0:00:32"]

1. e4 {[%clk 0:03:00]}  c5 {[%clk 0:02:57]} 2. Nf3 {[%clk 0:03:01]}  d6 {[%clk 0:02:57]} 3. d4 {[%clk 0:03:02]}  cxd4 {[%clk 0:02:58]} 4. Nxd4 {[%clk 0:03:02]}  Nf6 {[%clk 0:02:59]} 5. Nc3 {[%clk 0:03:03]}  a6 {[%clk 0:02:59]} 6. Rg1 {[%clk 0:03:03]}  h5 {[%clk 0:02:58]} 7. h3 {[%clk 0:03:04]}  e6 {[%clk 0:02:56]} 8. g4 {[%clk 0:03:04]}  hxg4 {[%clk 0:02:56]} 9. hxg4 {[%clk 0:03:05]}  b5 {[%clk 0:02:56]} 10. g5 {[%clk 0:03:05]}  Nfd7 {[%clk 0:02:56]} 11. g6 {[%clk 0:03:06]}  Qf6 {[%clk 0:02:42]} 12. gxf7+ {[%clk 0:02:57]}  Qxf7 {[%clk 0:02:43]} 13. Be2 {[%clk 0:02:50]}  Nc5 {[%clk 0:02:32]} 14. a3 {[%clk 0:02:37]}  Bb7 {[%clk 0:02:29]} 15. Bg4 {[%clk 0:02:31]}  Nc6 {[%clk 0:02:18]} 16. b4 {[%clk 0:02:19]}  Nxd4 {[%clk 0:02:11]} 17. Qxd4 {[%clk 0:02:03]}  Nd7 {[%clk 0:01:59]} 18. f4 {[%clk 0:01:41]}  Be7 {[%clk 0:01:55]} 19. Be3 {[%clk 0:01:41]}  Bh4+ {[%clk 0:01:43]} 20. Kd2 {[%clk 0:01:39]}  Bf6 {[%clk 0:01:43]} 21. Qd3 {[%clk 0:01:32]}  Rc8 {[%clk 0:01:40]} 22. Bd4 {[%clk 0:01:31]}  Bxd4 {[%clk 0:01:39]} 23. Qxd4 {[%clk 0:01:32]}  Qxf4+ {[%clk 0:01:40]} 24. Kd1 {[%clk 0:01:27]}  Qe5 {[%clk 0:01:21]} 25. Ne2 {[%clk 0:01:15]}  Bxe4 {[%clk 0:01:17]} 26. Qxe5 {[%clk 0:00:27]}  Nxe5 {[%clk 0:01:15]} 27. Bxe6 {[%clk 0:00:28]}  Rxc2 {[%clk 0:01:07]} 28. Rxg7 {[%clk 0:00:28]}  Rh1+ {[%clk 0:01:03]} 29. Rg1 {[%clk 0:00:27]}  Rxg1+ {[%clk 0:00:56]} 30. Nxg1 {[%clk 0:00:28]}  Rh2 {[%clk 0:00:43]} 31. Rc1 {[%clk 0:00:19]}  Nd3 {[%clk 0:00:42]} 32. Rc8+ {[%clk 0:00:17]}  Ke7 {[%clk 0:00:42]} 33. Bb3 {[%clk 0:00:08]}  Rg2 {[%clk 0:00:37]} 34. Nh3 {[%clk 0:00:04]}  Bf3# {[%clk 0:00:32]} 0-1


[Site "https://www.chess.com"]